fUSD/lending_fUSD_20260221
["ID","MTS","AMOUNT","RATE_DAILY","PERIOD"]
[406268975,1771674648028,-1000.0,0.00044486,14]
[406268976,1771674648037,-150.0,0.00044486,14]
[406268977,1771674648051,-1000.0,0.00044487,14]
[406268978,1771674648061,-1000.0,0.00044488,14]
[406268979,1771674648070,-2000.0,0.0004449,120]
[406268980,1771674648079,-2000.0,0.0004449,120]
[406268981,1771674648088,-2000.0,0.0004449,120]
[406268982,1771674648097,-2000.0,0.0004449,120]
[406268983,1771674648106,-2000.0,0.0004449,120]
[406268984,1771674648116,-1000.0,0.00044499,14]
[406268985,1771674648125,-2200.0,0.000445,16]
[406268986,1771674648135,-1000.0,0.00044502,14]
[406268987,1771674648144,-1000.0,0.00044518,14]
[406268988,1771674648153,-1000.0,0.00044524,14]
[406268989,1771674648163,-1000.0,0.00044528,14]
[406268990,1771674648173,-1000.0,0.00044562,14]
[406268991,1771674648183,-150.0,0.00044566,14]
[406268992,1771674648192,-1000.0,0.00044571,14]
[406268993,1771674648201,-1000.0,0.00044572,14]
[406268994,1771674648210,-1000.0,0.00044573,14]
[406268995,1771674648219,-150.0,0.00044577,14]
[406268996,1771674648228,-219.0,0.00044584,2]
[406268997,1771674648238,-2200.0,0.000446,16]
[406268998,1771674648247,-1000.0,0.00044604,14]
[406268999,1771674648257,-500.0,0.0004462,60]
[406269000,1771674648266,-500.0,0.0004462,60]
[406269001,1771674648275,-1000.0,0.00044627,14]
[406269002,1771674648285,-1000.0,0.0004463,14]
[406269003,1771674648294,-1500.0,0.0004463,120]
[406269004,1771674648303,-1500.0,0.0004463,120]
[406269005,1771674648312,-1500.0,0.0004463,120]
[406269006,1771674648321,-1500.0,0.0004463,120]
[406269007,1771674648331,-1136.897,0.0004463,120]
[406269008,1771674648341,-150.94414865,0.00044634,14]
[406269009,1771674648350,-9996.1634646,0.00044644,2]
[406269010,1771674648360,-2436.8084737,0.00044644,2]
[406269011,1771674648370,-107748.8201401,0.00044644,2]
[406269012,1771674648379,-1561.0008308,0.00044644,2]
[406269013,1771674648388,-913.0403684,0.00044644,2]
[406269014,1771674648398,-1000.0,0.00044644,14]
[406269015,1771674648408,-150.0,0.00044661,14]
[406269016,1771674648417,-1000.0,0.00044662,14]
[406269017,1771674648427,-1000.0,0.00044663,14]
[406269018,1771674648436,-150.0,0.00044679,14]
[406269019,1771674648446,-1000.0,0.00044698,14]
[406269020,1771674648455,-2200.0,0.000447,16]
[406269021,1771674648465,-150.0,0.00044701,14]
[406269022,1771674648475,-1249.8112009,0.00044726,120]
[406269023,1771674648484,-1000.0,0.00044735,14]
[406269024,1771674648493,-150.0,0.00044746,14]
[406269025,1771674648503,-1000.0,0.0004475,14]
[406269026,1771674648512,-150.0,0.00044755,14]
[406269027,1771674648522,-150.0,0.00044758,14]
[406269028,1771674648532,-150.0,0.00044765,14]
[406269029,1771674648542,-1000.0,0.00044766,14]
[406269030,1771674648551,-1000.0,0.00044766,14]
[406269031,1771674648560,-1000.0,0.0004477,3]
[406269032,1771674648569,-150.0,0.00044793,14]
[406269033,1771674648579,-150.0,0.00044793,14]
[406269034,1771674648588,-861.0,0.00044796,7]
[406269035,1771674648603,-6999.99,0.000448,120]
[406269036,1771674648621,-2466.0,0.000448,16]
[406269037,1771674648630,-26646.57,0.000448,2]
[406269038,1771674648639,-1000.0,0.00044804,14]
[406269039,1771674648649,-1000.0,0.00044824,14]
[406269040,1771674648659,-150.0,0.00044827,14]
[406269041,1771674648668,-1000.0,0.00044834,14]
[406269042,1771674648677,-150.0,0.00044837,14]
[406269043,1771674648686,-1000.0,0.00044839,14]
[406269044,1771674648695,-1000.0,0.00044842,14]
[406269045,1771674648704,-49456.39366332,0.00044866,15]
[406269046,1771674648713,-31273.72502835,0.00044866,15]
[406269047,1771674648723,-1000.0,0.0004487,3]
[406269048,1771674648732,-500.0,0.0004487,3]
[406269049,1771674648740,-500.0,0.0004487,3]
[406269050,1771674648749,-1000.0,0.0004487,3]
[406269051,1771674648758,-500.0,0.0004487,3]
[406269052,1771674648767,-1000.0,0.0004487,3]
[406269053,1771674648776,-500.0,0.0004487,3]
[406269054,1771674648785,-1000.0,0.0004487,3]
[406269055,1771674648794,-905.22771213,0.0004487,3]
[406269056,1771674648803,-1000.0,0.0004487,3]
[406269057,1771674648812,-151.0,0.00044879,120]
[406269058,1771674648821,-200.0,0.00044882,28]
[406269059,1771674648830,-200.0,0.00044882,28]
[406269060,1771674648839,-200.0,0.00044882,28]
[406269061,1771674648848,-200.0,0.00044882,28]
[406269062,1771674648863,-200.0,0.00044882,28]
[406269063,1771674648872,-200.0,0.00044882,28]
[406269064,1771674648882,-500.0,0.00044882,28]
[406269065,1771674648891,-545.79913084,0.00044882,28]
[406269066,1771674648901,-202.62533237,0.00044882,28]
[406269067,1771674648910,-264.04644025,0.00044882,28]
[406269068,1771674648919,-174.61919141,0.00044882,28]
[406269069,1771674648929,-181.08010149,0.00044882,28]
[406269070,1771674648938,-500.0,0.00044882,28]
[406269071,1771674648947,-187.78006525,0.00044882,28]
[406269072,1771674648956,-500.0,0.00044882,28]
[406269073,1771674648966,-500.0,0.00044882,28]
[406269074,1771674648974,-194.72792766,0.00044882,28]
[406269075,1771674648983,-500.0,0.00044882,28]
[406269076,1771674648992,-201.93286099,0.00044882,28]
[406269077,1771674649001,-500.0,0.00044882,28]
[406269078,1771674649011,-500.0,0.00044882,28]
[406269079,1771674649020,-209.40437684,0.00044882,28]
[406269080,1771674649031,-500.0,0.00044882,28]
[406269081,1771674649043,-500.0,0.00044882,28]
[406269082,1771674649053,-217.15233878,0.00044882,28]
[406269083,1771674649065,-500.0,0.00044882,28]
[406269084,1771674649075,-500.0,0.00044882,28]
[406269085,1771674649085,-225.18697532,0.00044882,28]
[406269086,1771674649095,-500.0,0.00044882,28]
[406269087,1771674649104,-500.0,0.00044882,28]
[406269088,1771674649115,-233.51889341,0.00044882,28]
[406269089,1771674649125,-500.0,0.00044882,28]
[406269090,1771674649134,-500.0,0.00044882,28]
[406269091,1771674649145,-199.96970301,0.00044882,28]
[406269092,1771674649156,-500.0,0.00044882,28]
[406269093,1771674649167,-500.0,0.00044882,28]
[406269094,1771674649177,-500.0,0.00044882,28]
[406269095,1771674649186,-500.0,0.00044882,28]
[406269096,1771674649196,-500.0,0.00044882,28]
[406269097,1771674649206,-500.0,0.00044882,28]
[406269098,1771674649216,-500.0,0.00044882,28]
[406269099,1771674649225,-500.0,0.00044882,28]
[406269100,1771674649235,-500.0,0.00044882,28]
[406269101,1771674649244,-500.0,0.00044882,28]
[406269102,1771674649254,-500.0,0.00044882,28]
[406269103,1771674649263,-500.0,0.00044882,28]
[406269104,1771674649272,-500.0,0.00044882,28]
[406269105,1771674649281,-500.0,0.00044882,28]
[406269106,1771674649290,-500.0,0.00044882,28]
[406269107,1771674649299,-500.0,0.00044882,28]
[406269108,1771674649308,-500.0,0.00044882,28]
[406269109,1771674649318,-500.0,0.00044882,28]
[406269110,1771674649327,-500.0,0.00044882,28]
[406269111,1771674649335,-693.3919763,0.00044882,28]
[406269112,1771674649344,-719.04747942,0.00044882,28]
[406269113,1771674649354,-745.65223616,0.00044882,28]
[406269114,1771674649363,-773.2413689,0.00044882,28]
[406269115,1771674649372,-151.0,0.00044882,28]
[406269116,1771674649382,-801.85129955,0.00044882,28]
[406269117,1771674649391,-151.0,0.00044882,28]
[406269118,1771674649401,-831.51979763,0.00044882,28]
[406269119,1771674649411,-151.0,0.00044882,28]
[406269120,1771674649420,-862.28603014,0.00044882,28]
[406269121,1771674649429,-151.0,0.00044882,28]
[406269122,1771674649438,-894.19061326,0.00044882,28]
[406269123,1771674649448,-151.0,0.00044882,28]
[406269124,1771674649457,-927.27566595,0.00044882,28]
[406269125,1771674649467,-151.0,0.00044882,28]
[406269126,1771674649476,-961.58486559,0.00044882,28]
[406269127,1771674649486,-151.0,0.00044882,28]
[406269128,1771674649495,-997.16350561,0.00044882,28]
[406269129,1771674649505,-151.0,0.00044882,28]
[406269130,1771674649514,-151.0,0.00044882,28]
[406269131,1771674649524,-151.0,0.00044882,28]
[406269132,1771674649533,-151.0,0.00044882,28]
[406269133,1771674649542,-5000.0,0.00044882,120]
[406269134,1771674649551,-165.16452749,0.00044883,17]
[406269135,1771674649560,-296.63098615,0.00044884,30]
[406269136,1771674649569,-391.75816322,0.00044884,120]
[406269137,1771674649578,-1690.46956725,0.00044884,28]
[406269138,1771674649588,-990.00248115,0.00044884,2]
[406269139,1771674649597,-1000.0,0.00044901,14]
[406269140,1771674649606,-1000.0,0.00044908,14]
[406269141,1771674649616,-1000.0,0.00044909,14]
[406269142,1771674649626,-1000.0,0.00044927,14]
[406269143,1771674649635,-150.0,0.00044927,14]
[406269144,1771674649645,-1000.0,0.00044929,14]
[406269145,1771674649654,-1000.0,0.00044931,30]
[406269146,1771674649664,-1000.0,0.00044931,30]
[406269147,1771674649673,-1000.0,0.00044931,30]
[406269148,1771674649683,-1000.0,0.00044931,30]
[406269149,1771674649692,-842.0,0.00044932,120]
[406269150,1771674649701,-500.0,0.00044933,30]
[406269151,1771674649710,-500.0,0.00044933,30]
[406269152,1771674649720,-500.0,0.00044933,30]
[406269153,1771674649730,-320.25712602,0.00044933,30]
[406269154,1771674649739,-668.65185757,0.00044933,30]
[406269155,1771674649750,-151.0,0.00044933,30]
[406269156,1771674649759,-500.0,0.00044937,120]
[406269157,1771674649769,-500.0,0.00044937,120]
[406269158,1771674649778,-500.0,0.00044937,120]
[406269159,1771674649787,-644.79446246,0.00044937,120]
[406269160,1771674649797,-151.0,0.00044937,120]
[406269161,1771674649806,-2000.0,0.00044938,120]
[406269162,1771674649816,-1000.0,0.00044941,14]
[406269163,1771674649830,-500.0,0.00044941,30]
[406269164,1771674649839,-500.0,0.00044941,30]
[406269165,1771674649848,-500.0,0.00044941,30]
[406269166,1771674649857,-231.28369723,0.00044941,30]
[406269167,1771674649867,-621.78829552,0.00044941,30]
[406269168,1771674649877,-151.0,0.00044941,30]
[406269169,1771674649886,-150.0,0.00044943,14]
[406269170,1771674649896,-500.0,0.00044948,30]
[406269171,1771674649905,-500.0,0.00044948,30]
[406269172,1771674649915,-500.0,0.00044948,30]
[406269173,1771674649924,-223.0315306,0.00044948,30]
[406269174,1771674649934,-599.60298507,0.00044948,30]
[406269175,1771674649943,-151.0,0.00044948,30]
[406269176,1771674649954,-387.71279314,0.00044948,30]
[406269177,1771674649963,-151.0,0.00044952,30]
[406269178,1771674649973,-266.84148567,0.00044952,30]
[406269179,1771674649983,-500.0,0.00044956,120]
[406269180,1771674649994,-200.0,0.00044956,120]
[406269181,1771674650005,-1415605.4417922,0.00044956,6]
[406269182,1771674650016,-2745.0,0.00044959,120]
[406269183,1771674650028,-223.0,0.0004496,30]
[406269184,1771674650037,-18643.6315485,0.00044966,30]
[406269185,1771674650047,-18643.6315485,0.00044966,30]
[406269186,1771674650058,-18643.6315485,0.00044966,30]
[406269187,1771674650068,-18643.6315485,0.00044966,30]
[406269188,1771674650078,-500.0,0.0004497,3]
[406269189,1771674650089,-1000.0,0.0004497,3]
[406269190,1771674650099,-1000.0,0.0004497,3]
[406269191,1771674650109,-500.0,0.0004497,3]
[406269192,1771674650119,-280.0,0.00044971,2]
[406269193,1771674650130,-579.72654061,0.00044974,7]
[406269194,1771674650140,-300.0,0.00044982,30]
[406269195,1771674650150,-666.0,0.00044982,30]
[406269196,1771674650159,-300.0,0.00044983,30]
[406269197,1771674650169,-666.0,0.00044983,30]
[406269198,1771674650179,-1729.82304714,0.00044983,120]
[406269199,1771674650189,-201084.5320264,0.00044983,54]
[406269200,1771674650199,-1114384.50415008,0.00044984,10]
[406269201,1771674650325,-701.29917404,0.00044984,10]
[406269202,1771674650337,-781.06101906,0.00044984,10]
[406269203,1771674650349,-497.12974831,0.00044984,10]
[406269204,1771674650361,-540.43249539,0.00044984,10]
[406269205,1771674650394,-282.12310318,0.00025106,2]
[406269206,1771674650405,-1571.09713304,0.00044984,10]
[406269207,1771674650416,-2343.68669856,0.00044984,10]
[406269208,1771674650427,-18022.59244753,0.00044984,10]
[406269209,1771674650653,-4131.7238808,0.00044984,10]
[406269210,1771674650666,-2600.0,0.00044984,10]
[406269211,1771674650713,-500.0,0.00015173,2]
[406269212,1771674650723,-150.0,0.00039291,2]
[406269213,1771674650733,-150.135,0.00039291,2]
[406269214,1771674650744,-489.865,0.0004274,60]
[406269215,1771674650755,-5.135,0.0004274,60]
[406269216,1771674650765,-400.88914376,0.00044984,10]
[406269217,1771674650778,-9746.19370959,0.00044984,10]
[406269218,1771674650792,-608.21731146,0.00044984,10]
[406269219,1771674650803,-1434.61950838,0.00044984,10]
[406269220,1771674650814,-1180.95304529,0.00044984,10]
[406269221,1771674650826,-4029.66573873,0.00044984,10]
[406269222,1771674650838,-547.44,0.00044984,10]
[406269223,1771674650850,-15699.37668135,0.00044984,10]
[406269224,1771674650863,-452910.06889006,0.00044984,10]
[406269225,1771674650875,-705.20488044,0.00044984,10]
[406269226,1771674650886,-571.31555852,0.00044984,10]
[406269227,1771674687747,1000.0,0.000146,5]
[406269228,1771674689834,2100.0,0.000147,5]
[406269229,1771674690625,1316.00138872,0.00014614,2]
[406269230,1771674696250,584.00861128,0.0001442,2]
[406269231,1771674696271,526.00938872,0.0001442,2]
[406269232,1771674696305,182.014,0.0001442,2]
[406269233,1771674723621,5000.01,0.00014685,2]
[406269234,1771674723644,15057.99,0.00014685,2]
[406269235,1771674727063,1100.0,0.000146,5]
[406269236,1771674729145,2200.0,0.000147,5]
[406269237,1771674747400,1690.46956729,0.00014614,2]
[406269238,1771674749815,732.05268613,0.00014,2]
[406269239,1771674750358,28146.35252556,0.00014614,2]
[406269240,1771674757670,300.0,0.000146,5]
[406269241,1771674759775,600.0,0.000147,5]
[406269242,1771674763414,151.0,0.00014634,2]
[406269244,1771674782689,8601.0,0.00014685,2]
[406269245,1771674791558,500.0,0.00014613,2]
[406269246,1771674798191,-113.13253626,0.000147,2]
[406269247,1771674801150,-5000.01,0.000147,2]
[406269248,1771674810857,1537.33591324,0.00014614,2]
[406269249,1771674822890,3530.0165383,0.00014614,2]
[406269250,1771674829184,279.79,0.000147,2]
[406269251,1771674841590,300.0,0.00014699,2]
[406269252,1771674843180,300.0,0.00014699,2]
[406269253,1771674846440,9613.4289,0.00014614,2]
[406269254,1771674848513,266.2184697,0.00014614,2]
[406269255,1771674861793,169.883514,0.00014614,2]
[406269256,1771674899142,-10000.01,0.000147,2]
[406269257,1771674905022,-4284.037734,0.000147,2]
[406269258,1771674905045,-1431.934532,0.000147,2]
[406269259,1771674908071,986.546056,7.945e-05,2]
[406269261,1771674930994,1024.89060882,0.00014614,2]
[406269262,1771674932278,500.0,0.00014613,2]
[406269263,1771674932948,1729.98,0.00014513,2]
[406269264,1771674959062,1376.9953,0.00014614,2]
[406269265,1771674974009,302038.29653224,0.00014614,2]
[406269266,1771674986769,151.0,0.00014611,2]
[406269267,1771674987136,151.0,0.00014611,2]
[406269268,1771674987370,717.71829719,0.00014607,2]
[406269269,1771674992780,500.0,0.00014613,2]
[406269270,1771674992818,368.94679158,0.00014613,2]
[406269271,1771674992865,277.43125734,0.00014613,2]
[406269272,1771674992982,500.0,0.00014613,2]
[406269273,1771675007954,300.0,0.000146,5]
[406269274,1771675021693,150.0,0.00014613,2]
[406269275,1771675022568,300.0,0.00014613,2]
[406269276,1771675027474,1726.63145754,0.00014514,2]
[406269277,1771675033103,872.22448888,0.00014613,2]
[406269278,1771675033137,872.22448888,0.00014613,2]
[406269279,1771675033170,872.22448888,0.00014613,2]
[406269280,1771675033200,872.22448888,0.00014613,2]
[406269281,1771675033229,872.22448888,0.00014613,2]
[406269282,1771675033262,496.15975195,0.00014613,2]
[406269283,1771675033286,376.06473693,0.00014613,2]
[406269284,1771675033317,872.22448888,0.00014613,2]
[406269285,1771675033366,872.22448888,0.00014613,2]
[406269286,1771675033397,872.22448888,0.00014613,2]
[406269287,1771675033432,872.22448888,0.00014613,2]
[406269288,1771675033462,872.22448888,0.00014613,2]
[406269289,1771675033493,872.22448888,0.00014613,2]
[406269290,1771675033524,872.22448888,0.00014613,2]
[406269291,1771675033577,872.22448888,0.00014613,2]
[406269292,1771675033607,872.22448888,0.00014613,2]
[406269293,1771675033646,872.22448888,0.00014613,2]
[406269294,1771675033676,872.22448888,0.00014613,2]
[406269295,1771675033711,29.47588539,0.00014613,2]
[406269296,1771675033735,842.74860349,0.00014613,2]
[406269297,1771675033823,872.22448888,0.00014613,2]
[406269298,1771675033858,872.22448888,0.00014613,2]
[406269299,1771675033888,872.22448888,0.00014613,2]
[406269300,1771675033918,872.22448888,0.00014613,2]
[406269301,1771675033952,872.22448888,0.00014613,2]
[406269302,1771675033983,872.22448888,0.00014613,2]
[406269303,1771675034018,872.22448888,0.00014613,2]
[406269304,1771675034059,872.22448888,0.00014613,2]
[406269305,1771675034092,872.22448888,0.00014613,2]
[406269306,1771675034126,872.22448888,0.00014613,2]
[406269307,1771675034160,435.01650771,0.00014613,2]
[406269308,1771675034185,437.20798117,0.00014613,2]
[406269309,1771675034219,872.22448888,0.00014613,2]
[406269310,1771675034260,872.22448888,0.00014613,2]
[406269311,1771675034301,872.22448888,0.00014613,2]
[406269312,1771675034345,872.22448888,0.00014613,2]
[406269313,1771675034387,872.22448888,0.00014613,2]
[406269314,1771675034491,872.22448888,0.00014613,2]
[406269315,1771675048235,391.75816324,0.00014514,2]
[406269316,1771675048938,872.22448888,0.00014613,2]
[406269317,1771675049152,872.22448888,0.00014613,2]
[406269318,1771675049182,872.22448888,0.00014613,2]
[406269319,1771675049215,872.22448888,0.00014613,2]
[406269320,1771675049245,448.79896679,0.00014613,2]
[406269321,1771675051209,683.26040588,0.00014514,2]
[406269322,1771675054516,905.82929346,0.00014514,2]
[406269323,1771675067305,8410.92030066,0.00014226,2]
[406269324,1771675067332,10000.01,0.00014226,2]
[406269325,1771675067355,4393.52969934,0.00014226,2]
[406269326,1771675067403,5606.48030066,0.00014514,2]
[406269327,1771675067425,10000.01,0.00014514,2]
[406269328,1771675067446,10000.01,0.00014514,2]
[406269329,1771675067467,10000.01,0.00014514,2]
[406269330,1771675067488,10000.01,0.00014514,2]
[406269331,1771675067509,5791.51204112,0.00014514,2]
[406269332,1771675072682,4208.49795888,0.00014462,2]
[406269333,1771675072704,4298.75204112,0.00014462,2]
[406269334,1771675107126,1332.66341785,0.00014514,2]
[406269335,1771675111105,170.1,0.0001157,2]
[406269336,1771675111302,170.1,0.00012727,2]
[406269337,1771675111515,170.1,0.00013883,2]
[406269338,1771675117666,478.47886478,0.00014514,2]
[406269339,1771675147496,150.0,0.00014241,2]
[406269340,1771675171418,455.50693726,0.00014514,2]
[406269341,1771675203778,300.0,0.0001461,30]
[406269342,1771675240651,218.17246062,0.00014514,2]
[406269346,1771675247928,318.98590986,0.00014514,2]
[406269347,1771675260535,2237.15036851,0.00014514,2]
[406269348,1771675260557,10000.01,0.00014514,2]
[406269349,1771675260578,10000.01,0.00014514,2]
[406269350,1771675260600,9490.96266771,0.00014514,2]
[406269353,1771675308398,300.0,0.000145,5]
[406269354,1771675337549,209.04733229,0.00014514,2]
[406269355,1771675337570,2290.95266771,0.00014514,2]
[406269356,1771675355902,500.0,0.00014,2]
[406269357,1771675456560,179.22,0.000145,2]
[406269358,1771675456844,327.407725,0.00014461,2]
[406269360,1771675473537,2500.0,0.00014514,2]
[406269362,1771675595259,4202.42960729,0.00014514,2]
[406269363,1771675595281,10000.01,0.00014514,2]
[406269364,1771675595306,10000.01,0.00014514,2]
[406269365,1771675595329,10000.01,0.00014514,2]
[406269366,1771675595354,10000.01,0.00014514,2]
[406269367,1771675595375,10000.01,0.00014514,2]
[406269368,1771675648712,212.65727324,0.00014414,2]
[406269369,1771675667096,303.6712915,0.00014414,2]
[406269370,1771675679735,2516.18,0.00011005,2]
[406269371,1771675679929,2516.18,0.0001115,2]
[406269372,1771675680135,2516.18,0.00011295,2]
[406269373,1771675680325,1935.14143526,0.0001144,2]
[406269374,1771675680349,581.03856474,0.0001144,2]
[406269375,1771675680516,2516.18,0.00011584,2]
[406269376,1771675680702,2516.18,0.00011729,2]
[406269377,1771675680894,2516.18,0.00011874,2]
[406269378,1771675681082,2516.18,0.00012019,2]
[406269379,1771675681291,2516.18,0.00012164,2]
[406269380,1771675681497,2516.18,0.00012308,2]
[406269381,1771675681696,2516.18,0.00012453,2]
[406269382,1771675681893,1805.70143526,0.00012598,2]
[406269383,1771675684425,-710.47856474,0.00012598,2]
[406269384,1771675684455,-2516.18,0.00012743,2]
[406269385,1771675684484,-1030.51287052,0.00012888,2]
[406269386,1771675687279,-1485.66712948,0.00012888,2]
[406269387,1771675687307,-2516.18,0.00013032,2]
[406269388,1771675690293,-2516.18,0.00013177,2]
[406269389,1771675690326,-2451.47,0.00013322,2]
[406269390,1771675693350,-64.71,0.00013322,2]
[406269391,1771675693386,-2516.18,0.00013467,2]
[406269392,1771675693421,-2322.05,0.00013612,2]
[406269393,1771675696340,-194.13,0.00013612,2]
[406269394,1771675696368,-2516.18,0.00013756,2]
[406269396,1771675699736,-272.0,0.00014331,2]
[406269399,1771675733977,782.40986627,0.00013377,2]
[406269400,1771675756023,9217.60013373,0.00013743,2]
[406269401,1771675756048,5285.45986627,0.00013743,2]
[406269402,1771675770733,4714.55013373,0.00014414,2]
[406269403,1771675770755,10000.01,0.00014414,2]
[406269404,1771675770775,10000.01,0.00014414,2]
[406269405,1771675770796,3840.74959885,0.00014414,2]
[406269406,1771675776922,-3000.0,0.000145,5]
[406269407,1771675776949,-250.0,0.00014504,2]
[406269408,1771675776975,-153.54765348,0.00014508,2]
[406269409,1771675777001,-250.0,0.0001451,2]
[406269410,1771675777026,-557.0,0.00014513,2]
[406269411,1771675777051,-150.0,0.00014513,2]
[406269412,1771675777077,-190.0,0.00014513,2]
[406269413,1771675777102,-195.0,0.00014513,2]
[406269414,1771675787325,202.44752768,0.00014414,2]
[406269415,1771675791598,306.46716536,0.00014513,2]
[406269416,1771675791619,193.53283464,0.00014513,2]
[406269417,1771675791645,272.9540889,0.00014513,2]
[406269418,1771675791812,500.0,0.00014513,2]
[406269419,1771675791966,500.0,0.00014513,2]
[406269420,1771675792024,500.0,0.00014513,2]
[406269421,1771675798476,500.0,0.00014513,2]
[406269422,1771675801228,300.0,0.00014513,2]
[406269423,1771675801329,300.0,0.00014513,2]
[406269424,1771675801544,300.0,0.00014513,2]
[406269425,1771675801670,1200.0,0.00014513,2]
[406269426,1771675806843,500.0,0.00014513,2]
[406269427,1771675813346,500.0,0.00014513,2]
[406269428,1771675813373,500.0,0.00014513,2]
[406269429,1771675813426,408.02844979,0.00014513,2]
[406269430,1771675818440,768.60957088,0.00014504,2]
[406269431,1771675823882,-5000.01,0.00014514,2]
[406269432,1771675829873,-5000.01,0.00014514,2]
[406269433,1771675831958,-1389.15,0.00014514,2]
[406269434,1771675832011,-600.0,0.00014514,2]
[406269435,1771675832065,-76784.5647079,0.00014514,2]
[406269436,1771675832119,-848.718402,0.00014514,2]
[406269437,1771675832130,-294.125,0.00014514,2]
[406269438,1771675832174,-1003.3714036,0.00014514,2]
[406269454,1771675838026,-426.61846658,0.00014514,2]
[406269455,1771675838038,-5329.6013806,0.00014514,2]
[406269456,1771675838080,-545.67164813,0.00014514,2]
[406269457,1771675838136,-3348575.6793839,0.00014514,2]
[406269458,1771675838147,-2097.4317,0.00014514,2]
[406269459,1771675838157,-2500.0,0.00014514,2]
[406269460,1771675838167,-250.0,0.00014514,2]
[406269461,1771675838178,-270.0,0.00014514,2]
[406269462,1771675838188,-6000.0,0.000146,5]
[406269463,1771675838197,-768.60957088,0.00014603,2]
[406269464,1771675838208,-500.0,0.00014605,2]
[406269465,1771675838218,-500.0,0.00014605,2]
[406269466,1771675838228,-500.0,0.00014605,2]
[406269467,1771675838238,-500.0,0.00014605,2]
[406269468,1771675838248,-500.0,0.00014605,2]
[406269469,1771675838257,-500.0,0.00014605,2]
[406269470,1771675838271,-500.0,0.00014605,2]
[406269471,1771675838282,-500.0,0.00014605,2]
[406269472,1771675838291,-151.0,0.00014605,2]
[406269473,1771675838301,-202.62533237,0.00014605,2]
[406269474,1771675838311,-500.0,0.00014605,2]
[406269475,1771675838320,-151.0,0.00014605,2]
[406269476,1771675838330,-500.0,0.00014605,2]
[406269477,1771675838340,-151.0,0.00014605,2]
[406269478,1771675838350,-500.0,0.00014605,2]
[406269479,1771675838359,-151.0,0.00014605,2]
[406269480,1771675838368,-151.0,0.00014605,2]
[406269481,1771675838378,-151.0,0.00014605,2]
[406269482,1771675838388,-151.0,0.00014605,2]
[406269483,1771675838398,-151.0,0.00014605,2]
[406269485,1771675838407,-151.0,0.00014605,2]
[406269487,1771675838417,-151.0,0.00014605,2]
[406269488,1771675838427,-151.0,0.00014605,2]
[406269489,1771675838436,-151.0,0.00014605,2]
[406269490,1771675838446,-151.0,0.00014605,2]
[406269491,1771675838457,-151.0,0.00014605,2]
[406269492,1771675838467,-151.0,0.00014605,2]
[406269493,1771675838476,-151.0,0.00014605,2]
[406269494,1771675838486,-151.0,0.00014605,2]
[406269495,1771675838495,-151.0,0.00014605,2]
[406269496,1771675838504,-151.0,0.00014605,2]
[406269497,1771675838513,-151.0,0.00014605,2]
[406269498,1771675838523,-151.0,0.00014605,2]
[406269500,1771675838532,-151.0,0.00014605,2]
[406269501,1771675838542,-151.0,0.00014605,2]
[406269503,1771675838551,-151.0,0.00014605,2]
[406269504,1771675838561,-151.0,0.00014605,2]
[406269505,1771675838571,-151.0,0.00014605,2]